bitfinex/quotes_SOLUSD_20251125
["timestamp","ask_amount","ask_price","bid_price","bid_amount"]
[1764098930726,0.66,134.7,134.64,14.10011732]
[1764098930903,10.80011732,134.71,134.67,10.80011732]
[1764098931101,9.46994492,134.71,134.67,10.80011732]
[1764098931304,0.66,134.7,134.67,11.48011732]
[1764098931611,0.66,134.7,134.66,11.48011732]
[1764098931831,10.72292652,134.72,134.68,10.80011732]
[1764098931832,3.96,134.72,134.68,10.80011732]
[1764098931998,0.2,134.76,134.71,10.80011732]
[1764098931999,11.00011732,134.76,134.71,10.80011732]
[1764098932199,14.96011732,134.76,134.71,10.80011732]
[1764098932400,10.80011732,134.73,134.68,27.78898132]
[1764098932609,10.80011732,134.73,134.68,11.48011732]
[1764098932942,0.66,134.75,134.72,7.42280285]
[1764098933225,10.80011732,134.74,134.71,7.42318646]
[1764098933605,11.48011732,134.73,134.71,7.42318646]
[1764098934408,11.48011732,134.73,134.69,8.10424964]
[1764098934809,3.98,134.72,134.68,18.22509829]
[1764098935236,0.68,134.71,134.68,18.22509829]
[1764098935528,0.68,134.71,134.68,18.89509829]
[1764098935936,8.80994492,134.75,134.69,0.67]
[1764098936144,9.48994492,134.74,134.7,10.80011732]
[1764098936520,0.68,134.73,134.68,29.95749953]
[1764098936724,0.68,134.73,134.7,4.51992156]
[1764098937034,0.68,134.73,134.7,11.94373903]
[1764098937236,0.68,134.73,134.7,12.61373903]
[1764098937440,0.68,134.73,134.7,31.17350146]
[1764098938236,0.68,134.73,134.7,26.6535799]
[1764098938534,0.68,134.73,134.7,37.44643216]
[1764098939743,11.48285226,134.75,134.71,10.79285226]
[1764098940033,0.69,134.74,134.71,10.79285226]
[1764098940435,4.19,134.76,134.72,11.51285226]
[1764098940616,14.29285226,134.76,134.72,10.79285226]
[1764098940826,10.79285226,134.74,134.7,36.77643216]
[1764098941210,11.48285226,134.74,134.7,37.49643216]
[1764098941813,11.48285226,134.74,134.7,36.77643216]
[1764098941814,0.69,134.74,134.7,36.77643216]
[1764098942015,19.60279718,134.75,134.72,7.42280285]
[1764098942248,20.29279718,134.75,134.72,7.42280285]
[1764098942412,0.69,134.74,134.72,7.42280285]
[1764098942608,0.69,134.74,134.71,7.4231559]
[1764098943438,0.69,134.74,134.71,37.49439283]
[1764098944849,3.5,134.76,134.73,10.79285226]
[1764098945024,3.5,134.76,134.72,11.51285226]
[1764098945227,0.69,134.75,134.71,40.07439283]
[1764098945415,4.19,134.76,134.72,11.51285226]
[1764098946321,14.98285226,134.76,134.73,7.42225191]
[1764098946641,9.49994492,134.75,134.73,7.42225191]
[1764098946836,9.49994492,134.75,134.72,7.42276207]
[1764098946837,20.29279718,134.75,134.72,7.42276207]
[1764098947137,19.60279718,134.73,134.7,7.42390497]
[1764098947314,8.80994492,134.73,134.7,7.42390497]
[1764098947510,9.49994492,134.73,134.7,18.21675723]
[1764098947715,0.69,134.73,134.7,18.21675723]
[1764098947952,0.69,134.73,134.7,18.93675723]
[1764098948129,0.69,134.73,134.7,37.49651966]
[1764098948441,8.80994492,134.74,134.7,37.49651966]
[1764098948662,9.49994492,134.74,134.7,37.49651966]
[1764098949235,8.80994492,134.75,134.71,11.51285226]
[1764098949450,9.49994492,134.75,134.71,11.51285226]
[1764098949742,0.69,134.74,134.71,11.51285226]
[1764098950324,8.80994492,134.75,134.71,11.51285226]
[1764098950531,8.80994492,134.75,134.71,37.49416714]
[1764098950737,11.48285226,134.74,134.71,7.42293021]
[1764098951126,0.69,134.73,134.71,7.42293021]
[1764098951830,0.69,134.73,134.68,7.42470434]
[1764098951831,22.90279718,134.72,134.68,7.42470434]
[1764098952040,22.90279718,134.72,134.68,8.14470434]
[1764098952227,23.59279718,134.72,134.68,8.14470434]
[1764098952428,12.79994492,134.72,134.68,8.14470434]
[1764098952729,23.59279718,134.72,134.68,18.9375566]
[1764098953141,23.59279718,134.72,134.68,37.50007516]
[1764098955550,22.90279718,134.72,134.68,37.50007516]
[1764098955754,0.69,134.71,134.68,37.50007516]
[1764098956529,12.79994492,134.72,134.68,37.50007516]
[1764098958660,8.80994492,134.74,134.7,4.520942]
[1764098958854,12.79994492,134.74,134.71,0.72]
[1764098959331,12.79994492,134.74,134.7,5.240942]
[1764098959532,0.69,134.73,134.7,0.72]
[1764098959740,0.69,134.73,134.69,4.520942]
[1764098959945,0.69,134.73,134.7,0.72]
[1764098960147,0.69,134.73,134.71,7.42335387]
[1764098960557,3.3,134.74,134.72,0.72]
[1764098960737,3.99,134.74,134.71,31.22268054]
[1764098960937,3.99,134.74,134.71,26.70173854]
[1764098961362,3.99,134.74,134.71,8.14335387]
[1764098961556,3.99,134.74,134.71,26.70173854]
[1764098962135,3.99,134.74,134.7,7.4236927]
[1764098962136,0.69,134.73,134.7,7.4236927]
[1764098962536,8.510942,134.74,134.7,26.70345513]
[1764098963747,0.7,134.73,134.7,25.98345513]
[1764098964069,0.7,134.73,134.7,26.68345513]
[1764098966056,3.3,134.74,134.71,0.7]
[1764098966372,3.3,134.74,134.72,7.42280285]
[1764098966547,4.0,134.74,134.72,7.42280285]
[1764098971449,3.3,134.74,134.72,7.42280285]
[1764098971646,3.3,134.74,134.73,0.7]
[1764098971846,3.3,134.74,134.72,8.12280285]
[1764098972273,3.3,134.74,134.72,7.42280285]
[1764098973354,4.0,134.74,134.72,7.42280285]
[1764098973948,0.2,134.76,134.73,3.59275672]
[1764098974273,0.2,134.76,134.72,25.97980997]
[1764098974274,0.2,134.76,134.72,29.57256669]
[1764098974472,3.79275672,134.76,134.72,26.67980997]
[1764098975061,3.79275672,134.76,134.73,0.7]
[1764098975375,3.79275672,134.76,134.74,7.42170105]
[1764098976259,0.9,134.76,134.74,7.42170105]
[1764098976571,3.09275672,134.76,134.74,7.42170105]
[1764098976744,0.7,134.75,134.73,7.42203104]
[1764098977973,0.2,134.76,134.73,7.42203104]
[1764098978173,0.2,134.76,134.74,0.7]
[1764098978564,0.9,134.76,134.73,7.42203104]
[1764098978773,11.70270164,134.75,134.73,7.42203104]
[1764098978963,12.40270164,134.75,134.73,7.42203104]
[1764098979269,8.80994492,134.75,134.73,7.42203104]
[1764098979446,8.80994492,134.75,134.69,56.72918156]
[1764098979447,0.7,134.74,134.7,7.42390497]
[1764098979651,0.7,134.74,134.7,11.01666169]
[1764098979850,0.7,134.74,134.71,8.12286916]
[1764098980445,3.3,134.74,134.71,7.42286916]
[1764098980646,4.0,134.74,134.71,7.42286916]
[1764098980869,3.3,134.74,134.72,0.7]
[1764098981372,4.0,134.74,134.71,8.12286916]
[1764098981882,4.0,134.74,134.71,26.68125383]
[1764098982873,3.3,134.74,134.72,0.7]
[1764098983248,9.00994492,134.76,134.72,3.59275672]
[1764098983550,3.3,134.76,134.72,3.59275672]
[1764098983756,4.0,134.76,134.73,0.7]
[1764098983966,4.0,134.76,134.74,7.42170105]
[1764098985558,0.7,134.75,134.74,7.42170105]
[1764098985770,3.59275672,134.75,134.73,7.42203764]
[1764098986074,3.3,134.76,134.73,26.67766741]
[1764098986261,0.7,134.75,134.73,25.97766741]
[1764098986760,0.7,134.75,134.73,7.42203764]
[1764098988362,3.59275672,134.74,134.72,7.42261118]
[1764098988573,0.7,134.74,134.72,7.42261118]
[1764098988759,4.0,134.76,134.72,26.6796183]
[1764098989068,6.19275672,134.76,134.72,26.6796183]
[1764098989277,0.7,134.75,134.72,26.6796183]
[1764098990775,3.3,134.76,134.72,29.57237502]
[1764098990975,0.7,134.75,134.72,26.6796183]
[1764098991648,0.7,134.77,134.73,0.7]
[1764098991854,3.59275672,134.77,134.73,0.7]
[1764098992276,0.7,134.76,134.73,0.7]
[1764098992657,0.7,134.76,134.74,7.42170105]
[1764098993069,2.89275672,134.77,134.74,0.7]
[1764098993865,0.2,134.79,134.74,0.7]
[1764098994062,0.2,134.79,134.75,2.89275672]
[1764098994474,0.2,134.79,134.76,0.69]
[1764098994786,0.2,134.79,134.77,7.42004897]
[1764098995365,0.2,134.79,134.78,0.69]
[1764098995561,0.2,134.79,134.77,0.69]
[1764098995756,0.2,134.79,134.76,10.31330982]
[1764098996079,0.2,134.79,134.76,11.00330982]
[1764098996274,0.2,134.79,134.76,28.86480878]
[1764098996582,0.2,134.79,134.77,0.69]
[1764098997079,0.2,134.79,134.78,7.41949844]
[1764098997976,0.2,134.79,134.78,8.10949844]
[1764098998170,0.2,134.79,134.78,7.41949844]
[1764098998469,0.2,134.79,134.78,8.10949844]
[1764098998676,0.2,134.79,134.78,11.00225516]
[1764098999372,0.2,134.79,134.78,8.10949844]
[1764098999685,0.2,134.79,134.78,11.00225516]
[1764099000762,0.2,134.79,134.78,8.09949844]
[1764099001965,0.2,134.79,134.78,10.99225516]
[1764099002691,1e-08,134.79,134.78,10.99225516]
[1764099002859,1e-08,134.79,134.78,14.29225516]
[1764099003398,1e-08,134.79,134.78,23.10220008]
[1764099004076,1e-08,134.79,134.78,8.09949844]
[1764099004286,1e-08,134.79,134.78,30.60111916]
[1764099004971,0.2,134.84,134.81,16.308864]
[1764099005212,0.2,134.85,134.84,7.41619697]
[1764099005510,0.2,134.85,134.83,7.41654276]
[1764099005691,0.2,134.85,134.75,11.57102688]
[1764099005692,2.89275672,134.84,134.75,11.57102688]
[1764099005873,2.89275672,134.82,134.77,3.57275672]
[1764099006068,2.89275672,134.81,134.77,3.98]
[1764099006391,2.89275672,134.82,134.78,0.68]
[1764099006693,2.89275672,134.82,134.77,3.57275672]
[1764099006902,2.89275672,134.81,134.77,3.57275672]
[1764099007074,2.89275672,134.79,134.75,2.89275672]
[1764099007274,2.89275672,134.78,134.75,7.42115027]
[1764099007474,3.60275672,134.78,134.75,7.42115027]
[1764099008033,2.89275672,134.76,134.74,7.42148388]
[1764099008225,2.89275672,134.76,134.73,7.42205552]
[1764099008909,3.60275672,134.77,134.73,7.42205552]
[1764099009076,0.71,134.77,134.73,26.65768529]
[1764099009281,2.89275672,134.78,134.75,7.42115027]
[1764099009473,3.60275672,134.78,134.75,7.42115027]
[1764099009676,0.71,134.78,134.75,7.42115027]
[1764099009900,16.308864,134.79,134.75,8.10115027]
[1764099010074,19.91162072,134.79,134.75,10.99390699]
[1764099010501,3.60275672,134.79,134.75,10.99390699]
[1764099011204,3.3,134.83,134.76,0.68]
[1764099011385,17.018864,134.82,134.77,25.9701714]
[1764099011879,19.91162072,134.82,134.78,3.57275672]
[1764099012201,17.018864,134.82,134.78,3.57275672]
[1764099012586,19.91162072,134.82,134.78,3.57275672]
[1764099013004,0.71,134.81,134.77,28.86292812]
[1764099013205,3.60275672,134.81,134.77,25.9701714]
[1764099013501,3.60275672,134.81,134.77,28.86292812]
[1764099013907,19.20162072,134.82,134.77,28.86292812]
[1764099014088,19.91162072,134.82,134.78,2.89275672]
[1764099014318,2.89275672,134.8,134.77,7.42004897]
[1764099014508,2.89275672,134.79,134.76,7.42049943]
[1764099014698,2.89275672,134.78,134.74,3.57275672]
[1764099014904,0.71,134.8,134.72,19.20162072]
[1764099014905,2.89275672,134.77,134.72,19.20162072]
[1764099015335,2.89275672,134.78,134.74,10.31445777]
[1764099015514,4.01,134.79,134.74,10.31445777]
[1764099015710,0.71,134.78,134.74,10.31445777]
[1764099015904,0.71,134.78,134.74,10.99445777]
[1764099016230,0.71,134.78,134.74,8.10170105]
[1764099016413,3.60275672,134.78,134.74,10.31445777]
[1764099016612,3.60275672,134.78,134.74,7.42170105]
[1764099016814,0.71,134.77,134.74,7.42170105]
[1764099017432,2.89275672,134.78,134.74,7.42170105]
[1764099017642,3.60275672,134.78,134.74,7.42170105]
[1764099017942,0.71,134.77,134.74,7.42170105]
[1764099019222,3.3,134.79,134.75,3.57275672]
[1764099019422,30.63076189,134.83,134.78,2.89275672]
[1764099019607,17.62189789,134.83,134.77,25.9699639]
[1764099019808,2.89275672,134.82,134.78,2.89275672]
[1764099020032,4.01,134.83,134.78,2.89275672]
[1764099020212,6.90275672,134.83,134.79,2.89275672]
[1764099020414,0.71,134.82,134.78,3.57275672]
[1764099021533,3.60275672,134.82,134.79,7.41894799]
[1764099022736,3.60275672,134.81,134.79,7.41894799]
[1764099022925,3.60275672,134.82,134.79,7.41894799]
[1764099023243,0.71,134.82,134.79,7.41894799]
[1764099023654,11.02008178,134.82,134.78,7.41934349]
[1764099024027,2.89275672,134.81,134.78,7.41934349]
[1764099024342,3.60275672,134.81,134.78,7.41934349]
[1764099025209,3.60275672,134.8,134.76,7.42038043]
[1764099025415,2.89275672,134.79,134.76,7.42038043]
[1764099025614,3.60275672,134.79,134.75,7.42115027]
[1764099025928,3.60275672,134.79,134.75,8.07115027]
[1764099026128,6.90275672,134.79,134.75,8.07115027]
[1764099027436,2.89275672,134.76,134.74,7.42145862]
[1764099027620,2.89275672,134.77,134.73,25.97788168]
[1764099027820,2.89275672,134.77,134.73,28.8706384]
[1764099028059,3.60275672,134.77,134.73,29.5206384]
[1764099028345,0.71,134.77,134.73,29.5206384]
[1764099028554,3.60275672,134.77,134.73,29.5206384]
[1764099029524,0.71,134.77,134.73,29.5206384]
[1764099030231,3.3,134.79,134.74,2.89275672]
[1764099030434,3.3,134.79,134.76,2.89275672]
[1764099030646,3.3,134.79,134.76,4.51598307]
[1764099030856,3.3,134.79,134.77,0.65]
[1764099031038,3.3,134.79,134.77,5.16598307]
[1764099031351,17.018864,134.81,134.77,5.16598307]
[1764099031522,17.018864,134.81,134.78,0.65]
[1764099031718,17.018864,134.81,134.78,8.06898687]
[1764099031918,7.81598307,134.82,134.78,12.58496994]
[1764099032151,4.01,134.82,134.78,12.58496994]
[1764099032352,3.3,134.82,134.79,0.65]
[1764099032647,3.3,134.82,134.78,30.48371604]
[1764099032843,4.01,134.82,134.78,31.13371604]
[1764099033144,0.71,134.81,134.78,25.96773297]
[1764099033332,5.22598307,134.81,134.77,7.41985522]
[1764099033532,4.51598307,134.8,134.77,7.41985522]
[1764099033740,4.51598307,134.78,134.73,0.65]
[1764099034051,8.80994492,134.79,134.7,37.11891349]
[1764099034052,4.51598307,134.76,134.72,5.16598307]
[1764099034219,7.81598307,134.77,134.72,5.16598307]
[1764099034421,8.52598307,134.77,134.73,0.65]
[1764099034847,8.52598307,134.77,134.74,7.42170105]
[1764099035035,4.51598307,134.76,134.73,8.07204935]
[1764099035236,4.51598307,134.76,134.73,8.07223096]
[1764099035838,7.81598307,134.77,134.73,7.42223096]
[1764099036036,7.81598307,134.77,134.73,11.93821403]
[1764099036348,8.52598307,134.77,134.73,31.1438438]
[1764099036549,14.7993356,134.77,134.73,37.41719633]
[1764099037851,4.01,134.77,134.73,37.41719633]
[1764099038046,14.7993356,134.77,134.73,37.41719633]
[1764099039527,3.3,134.77,134.74,0.65]
[1764099039752,3.3,134.77,134.74,11.4393356]
[1764099039950,14.0893356,134.77,134.74,0.65]
[1764099040251,10.7893356,134.75,134.72,7.42258118]
[1764099040446,10.7893356,134.74,134.69,11.4393356]
[1764099040646,10.7893356,134.73,134.69,0.65]
[1764099040951,10.7893356,134.72,134.69,0.65]
[1764099041149,10.7893356,134.72,134.7,7.42390497]
[1764099041652,11.4993356,134.73,134.7,7.42390497]
[1764099042421,3.3,134.74,134.7,8.07390497]
[1764099042633,11.4993356,134.73,134.7,8.07390497]
[1764099042832,10.7893356,134.73,134.7,8.07390497]
[1764099043253,11.4993356,134.73,134.7,7.42390497]
[1764099043752,10.7893356,134.71,134.69,7.42423203]
[1764099044428,27.0306256,134.74,134.7,11.4393356]
[1764099044429,19.608864,134.74,134.7,11.4393356]
[1764099044628,31.1081996,134.74,134.7,11.4393356]
[1764099045351,38.53011419,134.74,134.7,7.42335391]
[1764099045560,10.7893356,134.73,134.7,7.42335391]
[1764099045748,10.7893356,134.73,134.7,8.07335391]
[1764099046151,38.53011419,134.74,134.7,8.07335391]
[1764099046549,38.53011419,134.74,134.71,11.4393356]
[1764099046550,3.3,134.74,134.71,11.4393356]
[1764099047059,3.3,134.74,134.72,0.65]
[1764099047451,3.3,134.74,134.73,7.42225191]
[1764099048342,14.7993356,134.74,134.7,18.55976243]
[1764099048658,11.4993356,134.73,134.69,0.65]
[1764099049063,10.7893356,134.72,134.7,7.42390497]
[1764099049363,11.4993356,134.73,134.7,7.42390497]
[1764099051258,11.4993356,134.72,134.7,7.42390497]
[1764099051964,10.7893356,134.72,134.69,7.42424339]
[1764099052173,11.4993356,134.72,134.69,7.42424339]
[1764099052865,11.4993356,134.72,134.69,8.07424339]
[1764099053256,11.4993356,134.72,134.69,26.63538378]
[1764099053965,11.4993356,134.72,134.69,25.98538378]
[1764099054155,7.42227208,134.73,134.65,3.3]
[1764099054156,10.7893356,134.7,134.65,0.7]
[1764099054469,10.7893356,134.68,134.64,11.4893356]
[1764099054663,3.3,134.68,134.65,10.7893356]
[1764099054873,3.3,134.68,134.65,11.4893356]
[1764099055757,3.3,134.68,134.66,0.7]
[1764099055960,3.3,134.68,134.66,11.4893356]
[1764099056364,3.3,134.68,134.67,8.12555877]
[1764099057050,0.71,134.74,134.67,37.4787913]
[1764099057256,3.3,134.71,134.69,10.7893356]
[1764099057651,3.3,134.71,134.69,0.7]
[1764099058587,3.3,134.71,134.7,7.42390497]
[1764099059468,3.3,134.71,134.7,8.12390497]
[1764099059858,3.3,134.71,134.7,7.42390497]
[1764099060046,3.3,134.71,134.7,12.63554844]
[1764099060243,8.80994492,134.76,134.7,31.19531087]
[1764099060465,3.3,134.75,134.71,5.21164347]
[1764099060658,3.3,134.75,134.72,7.42280285]
[1764099060945,3.3,134.75,134.73,4.52164347]
[1764099061164,3.3,134.75,134.73,5.21164347]
[1764099061855,7.61577996,134.85,134.75,16.308864]
[1764099062083,0.2,134.85,134.82,4.52164347]
[1764099062378,3.5,134.85,134.82,5.21164347]
[1764099062580,10.77592899,134.83,134.78,0.69]
[1764099062769,14.07592899,134.82,134.78,0.69]
[1764099063147,3.3,134.82,134.79,10.77592899]
[1764099063361,3.3,134.82,134.8,10.77592899]
[1764099063564,3.3,134.82,134.8,11.46592899]
[1764099063872,3.3,134.82,134.78,10.77592899]
[1764099064249,3.3,134.82,134.79,11.46592899]
[1764099064451,0.2,134.85,134.81,10.77592899]
[1764099064679,0.2,134.85,134.84,10.77592899]
[1764099064854,0.2,134.85,134.84,11.46592899]
[1764099066174,0.2,134.85,134.84,18.88212596]
[1764099066379,0.2,134.85,134.84,7.41619697]
[1764099066582,0.2,134.85,134.83,18.19250134]
[1764099066788,0.2,134.85,134.82,0.69]
[1764099067074,0.2,134.85,134.82,10.77592899]
[1764099067252,0.2,134.85,134.81,18.88360382]
[1764099067454,0.2,134.85,134.82,0.69]
[1764099067751,19.05163278,134.85,134.81,8.10767483]
[1764099068379,19.05163259,134.85,134.81,8.10767483]
[1764099068577,19.05163259,134.85,134.8,29.32161261]
[1764099068578,18.39163259,134.85,134.8,10.77592899]
[1764099068773,11.43592899,134.84,134.8,10.77592899]
[1764099069196,11.43592899,134.84,134.8,11.46592899]
[1764099069779,11.43592899,134.84,134.8,0.69]
[1764099070194,3.96,134.83,134.79,10.77592899]
[1764099070350,3.3,134.83,134.8,0.69]
[1764099070554,0.2,134.85,134.82,10.77592899]
[1764099070783,9.66994492,134.85,134.8,0.69]
[1764099071078,19.05160026,134.85,134.8,11.46592899]
[1764099071285,11.63592899,134.85,134.81,0.69]
[1764099071653,3.3,134.84,134.81,0.69]
[1764099072580,3.3,134.84,134.82,10.77592899]
[1764099073370,0.2,134.85,134.83,11.46592899]
[1764099073565,0.2,134.85,134.84,10.77592899]
[1764099073763,0.2,134.85,134.84,11.46592899]
[1764099074266,0.2,134.85,134.84,27.77479299]
[1764099074477,0.2,134.85,134.84,35.19098996]
[1764099074674,0.2,134.85,134.84,24.41506097]
[1764099074867,0.2,134.85,134.84,35.19098996]
[1764099077870,0.2,134.85,134.82,8.10679901]
[1764099078070,0.2,134.85,134.83,10.77592899]
[1764099078890,0.2,134.85,134.83,18.19261396]
[1764099079181,0.2,134.85,134.83,18.88261396]
[1764099080085,0.66,134.84,134.8,11.46592899]
[1764099080253,0.86,134.85,134.81,18.19356503]
[1764099080461,0.86,134.85,134.81,18.88356503]
[1764099080659,0.86,134.85,134.81,8.10763604]
[1764099080860,0.86,134.85,134.82,10.77592899]
[1764099081088,0.2,134.85,134.82,10.77592899]
[1764099081400,0.2,134.85,134.82,11.46592899]
[1764099081599,0.86,134.85,134.81,10.77592899]
[1764099081883,10.77592899,134.84,134.8,18.19420334]
[1764099082078,11.43592899,134.84,134.8,18.19420334]
[1764099082382,14.93592899,134.85,134.8,18.88420334]
[1764099082597,11.43592899,134.84,134.79,18.19463656]
[1764099082771,11.43592899,134.84,134.77,7.41958155]
[1764099082772,18.19322612,134.82,134.77,7.41958155]
[1764099083097,10.77592899,134.82,134.78,10.77592899]
[1764099083261,10.77592899,134.82,134.78,11.43592899]
[1764099083262,0.7,134.82,134.78,11.43592899]
[1764099083593,0.7,134.81,134.78,10.77592899]
[1764099083885,10.77592899,134.82,134.79,0.66]
[1764099084079,16.22693208,134.83,134.79,0.66]
[1764099084258,11.47592899,134.82,134.77,7.41958155]
[1764099084582,11.47592899,134.82,134.75,10.77592899]
[1764099084583,10.77592899,134.8,134.75,10.77592899]
[1764099084789,10.77592899,134.8,134.76,7.42059958]
[1764099084986,18.89448672,134.8,134.76,7.42059958]
[1764099085173,0.7,134.79,134.75,8.080967]
[1764099085482,11.47592899,134.79,134.75,8.080967]
[1764099085657,0.7,134.79,134.75,18.85689599]
[1764099086586,18.19448672,134.8,134.75,18.85689599]
[1764099086785,18.89448672,134.8,134.76,8.08010032]
[1764099087364,18.89448672,134.8,134.75,10.77592899]
[1764099087566,18.89448672,134.8,134.75,11.43592899]
[1764099087567,18.19448672,134.8,134.75,11.43592899]
[1764099087779,11.47592899,134.79,134.75,0.66]
[1764099087979,11.47592899,134.79,134.75,8.08090829]
[1764099088561,11.47592899,134.79,134.75,18.85683728]
[1764099088779,22.19390874,134.81,134.76,0.66]
[1764099089063,22.19390874,134.81,134.76,18.85648938]
[1764099089264,11.47592899,134.8,134.75,18.19703267]
[1764099089696,0.7,134.79,134.75,18.85703267]
[1764099090501,18.19445361,134.8,134.75,18.19703267]
[1764099090698,7.58257463,134.8,134.76,0.66]
[1764099090877,7.58257463,134.79,134.75,8.08110368]
[1764099091874,6.88257463,134.79,134.75,7.42110368]
[1764099092078,6.88257463,134.76,134.72,6.88257463]
[1764099092284,29.11880892,134.78,134.71,0.66]
[1764099092285,6.88257463,134.74,134.71,0.66]
[1764099092475,6.88257463,134.73,134.69,0.66]
[1764099092897,6.88257463,134.73,134.69,7.54257463]
[1764099093393,7.58257463,134.72,134.67,14.40788954]
[1764099093703,6.88257463,134.69,134.67,0.1]
[1764099093875,18.99251955,134.7,134.67,0.1]
[1764099094080,27.11661014,134.7,134.67,0.1]
[1764099094499,26.41661014,134.7,134.67,0.76]
[1764099094698,26.41661014,134.7,134.67,0.1]
[1764099095001,19.69251955,134.7,134.67,0.1]
[1764099095497,27.11644132,134.7,134.67,0.1]
[1764099096409,12.80994492,134.7,134.67,0.1]
[1764099096585,27.11644,134.7,134.67,0.1]
[1764099097815,19.69251955,134.7,134.67,0.1]
[1764099098684,3.3,134.7,134.68,7.54257463]
[1764099099019,3.3,134.7,134.68,0.66]
[1764099099400,26.4153421,134.72,134.68,0.66]
[1764099099599,27.1153421,134.72,134.68,0.66]
[1764099099810,27.1153421,134.72,134.67,6.98257463]
[1764099099811,6.88257463,134.69,134.67,0.1]
[1764099100198,3.3,134.69,134.67,0.1]
[1764099100911,0.7,134.68,134.67,0.1]
[1764099101109,10.88257463,134.69,134.67,0.1]
[1764099101299,3.3,134.71,134.67,7.64257463]
[1764099101811,3.3,134.71,134.68,6.88257463]
[1764099102013,3.3,134.71,134.68,7.54257463]
[1764099102195,3.3,134.71,134.69,7.54257463]
[1764099102511,3.3,134.71,134.67,7.64257463]
[1764099102993,3.3,134.71,134.68,8.08449302]
[1764099103208,3.3,134.71,134.68,14.96706765]
[1764099103410,23.19143863,134.74,134.69,7.54257463]
[1764099103606,3.3,134.73,134.69,7.54257463]
[1764099103799,3.3,134.73,134.7,0.66]
[1764099104198,9.50994492,134.72,134.68,14.30706765]
[1764099104406,9.50994492,134.72,134.68,8.08449302]
[1764099104407,16.39251955,134.72,134.68,8.08449302]
[1764099104811,23.8153458,134.72,134.68,8.08449302]
[1764099105205,26.49143863,134.73,134.69,0.66]
[1764099105506,26.49143863,134.73,134.69,7.54257463]
[1764099106201,3.3,134.73,134.7,7.54257463]
[1764099106601,3.3,134.73,134.71,14.9659285]
[1764099107126,3.3,134.73,134.72,0.66]
[1764099107298,6.88257463,134.78,134.72,7.54257463]
[1764099107502,3.3,134.77,134.75,6.88257463]
[1764099107912,8.80994492,134.8,134.75,6.88257463]
[1764099108117,3.3,134.79,134.76,7.54257463]
[1764099108317,3.3,134.79,134.78,6.88257463]
[1764099108608,3.3,134.82,134.78,14.96207307]
[1764099108915,3.3,134.82,134.72,26.49143863]
[1764099108916,6.88257463,134.81,134.77,7.41992998]
[1764099109111,6.88257463,134.81,134.77,14.30250461]
[1764099109112,7.58257463,134.81,134.77,14.30250461]
[1764099109624,10.18257463,134.82,134.77,14.96250461]
[1764099109928,0.7,134.81,134.77,14.96250461]
[1764099111133,6.88257463,134.8,134.77,7.41992998]
[1764099111511,7.58257463,134.8,134.77,7.41992998]
[1764099112124,15.69251955,134.81,134.77,7.41992998]
[1764099112323,16.39251955,134.81,134.77,7.41992998]
[1764099112521,23.11043238,134.81,134.77,7.41992998]
[1764099112830,10.18257463,134.82,134.77,14.96250461]
[1764099113012,4.0,134.82,134.78,7.54257463]
[1764099113212,3.3,134.82,134.79,6.88257463]
[1764099113413,3.3,134.82,134.8,6.88257463]
[1764099113614,3.3,134.82,134.8,7.59257463]
[1764099113814,3.3,134.82,134.8,6.88257463]
[1764099114015,3.3,134.82,134.8,7.59257463]
[1764099114610,3.3,134.82,134.81,7.41784734]
[1764099115023,3.3,134.82,134.81,8.12784734]
[1764099115233,3.5,134.85,134.81,15.01042197]
[1764099115430,3.5,134.85,134.82,0.71]
[1764099115733,16.40251955,134.84,134.8,7.41815952]
[1764099116133,7.59257463,134.83,134.79,8.12874919]
[1764099116320,15.69251955,134.84,134.8,0.71]
[1764099116512,16.40251955,134.84,134.8,0.71]
[1764099117246,16.40251955,134.84,134.8,8.12797496]
[1764099117542,19.808864,134.85,134.81,7.59257463]
[1764099117912,20.518864,134.85,134.81,7.59257463]
[1764099118111,7.59257463,134.84,134.8,14.30054959]
[1764099118527,7.59257463,134.84,134.8,15.01054959]